[Event "Early-Titled-Tuesday-Blitz-January-30-2024"]
[Site "Chess.com"]
[Date "2024.01.30"]
[Round "8"]
[White "eagleclaw07"]
[Black "Perecke"]
[Result "0-1"]
[WhiteElo "2737"]
[BlackElo "2579"]
[TimeControl "180+1"]
[EndTime "9:27:48 PST"]
[Termination "Perecke won by resignation"]

1. d4 {[%clk 0:02:58.9]} 1... Nf6 {[%clk 0:03:00]} 2. c4 {[%clk 0:02:59.2]} 2...
e6 {[%clk 0:03:00.9]} 3. Nc3 {[%clk 0:02:59.5]} 3... d5 {[%clk 0:03:01.2]} 4.
cxd5 {[%clk 0:02:59]} 4... exd5 {[%clk 0:03:01.3]} 5. Bg5 {[%clk 0:02:59.7]}
5... Be7 {[%clk 0:03:02]} 6. e3 {[%clk 0:03:00.1]} 6... O-O {[%clk 0:03:02.7]}
7. Bd3 {[%clk 0:03:00.3]} 7... Re8 {[%clk 0:03:03.4]} 8. Nf3 {[%clk 0:03:00.6]}
8... Nbd7 {[%clk 0:03:02.7]} 9. O-O {[%clk 0:03:01.1]} 9... c6 {[%clk
0:02:57.4]} 10. Qc2 {[%clk 0:03:00.5]} 10... h6 {[%clk 0:02:57.1]} 11. Bf4
{[%clk 0:02:58.6]} 11... Nh5 {[%clk 0:02:52.5]} 12. Be5 {[%clk 0:02:57.3]} 12...
Nhf6 {[%clk 0:02:41.4]} 13. Rfd1 {[%clk 0:02:43.2]} 13... Nxe5 {[%clk
0:02:32.2]} 14. dxe5 {[%clk 0:02:43.9]} 14... Nd7 {[%clk 0:02:32.6]} 15. e4
{[%clk 0:02:33]} 15... d4 {[%clk 0:02:30.7]} 16. Bc4 {[%clk 0:02:23.7]} 16...
dxc3 {[%clk 0:02:19.2]} 17. e6 {[%clk 0:02:20.5]} 17... fxe6 {[%clk 0:02:19.7]}
18. Bxe6+ {[%clk 0:02:21.4]} 18... Kh8 {[%clk 0:02:18.5]} 19. Bxd7 {[%clk
0:02:21.4]} 19... Bxd7 {[%clk 0:02:11.6]} 20. Ne5 {[%clk 0:02:21]} 20... Qc7
{[%clk 0:02:10.2]} 21. Nxd7 {[%clk 0:02:12.8]} 21... Rad8 {[%clk 0:02:09.3]} 22.
Qd3 {[%clk 0:02:02.9]} 22... c2 {[%clk 0:02:01]} 23. Qxc2 {[%clk 0:01:58]} 23...
Rxd7 {[%clk 0:02:00.7]} 24. Rxd7 {[%clk 0:01:57.9]} 24... Qxd7 {[%clk
0:02:01.6]} 25. Rd1 {[%clk 0:01:57.9]} 25... Qe6 {[%clk 0:02:00.2]} 26. b3
{[%clk 0:01:58.4]} 26... Bf6 {[%clk 0:01:56.5]} 27. f3 {[%clk 0:01:56.1]} 27...
Qe7 {[%clk 0:01:55.3]} 28. g3 {[%clk 0:01:46.8]} 28... Rd8 {[%clk 0:01:54.7]}
29. Rxd8+ {[%clk 0:01:37.6]} 29... Qxd8 {[%clk 0:01:55.6]} 30. f4 {[%clk
0:01:37.2]} 30... Qd4+ {[%clk 0:01:55.7]} 31. Kg2 {[%clk 0:01:35.6]} 31... Qb2
{[%clk 0:01:55.9]} 32. Qxb2 {[%clk 0:01:32.3]} 32... Bxb2 {[%clk 0:01:56.8]} 33.
e5 {[%clk 0:01:32]} 33... Kg8 {[%clk 0:01:57.3]} 34. Kf3 {[%clk 0:01:31.3]}
34... Kf7 {[%clk 0:01:57.6]} 35. Ke4 {[%clk 0:01:31.8]} 35... Ke7 {[%clk
0:01:55.5]} 36. h4 {[%clk 0:01:25]} 36... h5 {[%clk 0:01:53.2]} 37. Kf5 {[%clk
0:01:24.1]} 37... Kf7 {[%clk 0:01:51]} 38. Kg5 {[%clk 0:01:24.4]} 38... g6
{[%clk 0:01:48.9]} 39. g4 {[%clk 0:01:01.7]} 39... hxg4 {[%clk 0:01:49.8]} 40.
Kxg4 {[%clk 0:01:02.6]} 40... Ke6 {[%clk 0:01:49.6]} 41. Kg5 {[%clk 0:00:59.1]}
41... Bc1 {[%clk 0:01:49.9]} 42. Kg4 {[%clk 0:00:56.1]} 42... c5 {[%clk
0:01:49.1]} 0-1

[Event "Early-Titled-Tuesday-Blitz-January-30-2024"]
[Site "Chess.com"]
[Date "2024.01.30"]
[Round "8"]
[White "karinachess1"]
[Black "yjjga"]
[Result "1-0"]
[WhiteElo "2627"]
[BlackElo "2452"]
[TimeControl "180+1"]
[EndTime "9:28:05 PST"]
[Termination "karinachess1 won by resignation"]

1. d4 {[%clk 0:03:00.6]} 1... d5 {[%clk 0:02:53.7]} 2. c4 {[%clk 0:03:00.7]}
2... c6 {[%clk 0:02:53.8]} 3. Nf3 {[%clk 0:03:00.7]} 3... Nf6 {[%clk 0:02:54]}
4. g3 {[%clk 0:03:01.3]} 4... Bf5 {[%clk 0:02:50.7]} 5. Qb3 {[%clk 0:03:00.6]}
5... Qb6 {[%clk 0:02:32.2]} 6. Nc3 {[%clk 0:03:01.1]} 6... Nbd7 {[%clk
0:02:15.6]} 7. cxd5 {[%clk 0:02:59.3]} 7... cxd5 {[%clk 0:01:47.4]} 8. Nxd5
{[%clk 0:02:57]} 8... Nxd5 {[%clk 0:01:45.3]} 9. Qxd5 {[%clk 0:02:56.7]} 9...
Qb4+ {[%clk 0:01:45.5]} 10. Bd2 {[%clk 0:02:46.7]} 10... Qxb2 {[%clk 0:01:44.8]}
11. Rc1 {[%clk 0:02:47.3]} 11... e6 {[%clk 0:01:42.9]} 12. Qa5 {[%clk
0:02:32.4]} 12... Ba3 {[%clk 0:01:22.4]} 13. Bg2 {[%clk 0:02:27.4]} 13... Qxa2
{[%clk 0:01:18]} 14. O-O {[%clk 0:02:22.9]} 14... Qb3 {[%clk 0:01:12.9]} 15. Rc3
{[%clk 0:02:19.1]} 15... Bb4 {[%clk 0:01:08.3]} 16. Rxb3 {[%clk 0:02:17.3]}
16... Bxa5 {[%clk 0:01:08.5]} 17. Bxa5 {[%clk 0:02:18.2]} 17... b6 {[%clk
0:01:06.9]} 18. Bb4 {[%clk 0:02:18.4]} 18... Rc8 {[%clk 0:01:06.7]} 19. Bd6
{[%clk 0:02:09.2]} 19... Rc6 {[%clk 0:00:55]} 20. Ba3 {[%clk 0:02:00.5]} 20...
Rc2 {[%clk 0:00:54.2]} 21. Re1 {[%clk 0:01:55.5]} 21... f6 {[%clk 0:00:41.9]}
22. e4 {[%clk 0:01:54.1]} 22... Bg6 {[%clk 0:00:39.8]} 23. Bf1 {[%clk
0:01:52.9]} 23... Bh5 {[%clk 0:00:33.5]} 24. Bb5 {[%clk 0:01:50.3]} 24... Rc7
{[%clk 0:00:21.2]} 25. Bd6 {[%clk 0:01:49.8]} 25... Rc8 {[%clk 0:00:20]} 26. e5
{[%clk 0:01:49.1]} 26... f5 {[%clk 0:00:18.1]} 27. Ng5 {[%clk 0:01:46.1]} 1-0

[Event "Early-Titled-Tuesday-Blitz-January-30-2024"]
[Site "Chess.com"]
[Date "2024.01.30"]
[Round "8"]
[White "stepanosinovsky"]
[Black "Ural_bogatyr"]
[Result "1-0"]
[WhiteElo "2394"]
[BlackElo "2531"]
[TimeControl "180+1"]
[EndTime "9:28:06 PST"]
[Termination "stepanosinovsky won by resignation"]

1. e4 {[%clk 0:03:00.9]} 1... e5 {[%clk 0:02:59.7]} 2. Nf3 {[%clk 0:02:58.7]}
2... Nc6 {[%clk 0:03:00.2]} 3. Bb5 {[%clk 0:02:58.3]} 3... a6 {[%clk 0:03:00.7]}
4. Ba4 {[%clk 0:02:58.7]} 4... Nf6 {[%clk 0:03:01.3]} 5. O-O {[%clk 0:02:59.3]}
5... Nxe4 {[%clk 0:03:01]} 6. d4 {[%clk 0:02:56.3]} 6... b5 {[%clk 0:03:01.2]}
7. Bb3 {[%clk 0:02:56.5]} 7... d5 {[%clk 0:03:01.7]} 8. Nxe5 {[%clk 0:02:57.1]}
8... Nxe5 {[%clk 0:03:01.2]} 9. dxe5 {[%clk 0:02:58]} 9... c6 {[%clk 0:03:01.6]}
10. Be3 {[%clk 0:02:54.4]} 10... Bc5 {[%clk 0:02:17.3]} 11. Nd2 {[%clk
0:02:53.4]} 11... Nxd2 {[%clk 0:01:54.6]} 12. Qxd2 {[%clk 0:02:54.3]} 12... Bxe3
{[%clk 0:01:54.4]} 13. Qxe3 {[%clk 0:02:51.1]} 13... Bf5 {[%clk 0:01:53.8]} 14.
a4 {[%clk 0:02:12.5]} 14... O-O {[%clk 0:01:53.1]} 15. Qc5 {[%clk 0:02:07.6]}
15... Qc7 {[%clk 0:01:47.7]} 16. axb5 {[%clk 0:01:38.6]} 16... axb5 {[%clk
0:01:47.4]} 17. Bxd5 {[%clk 0:01:37.9]} 17... Rxa1 {[%clk 0:01:38.8]} 18. Rxa1
{[%clk 0:01:38.8]} 18... Be6 {[%clk 0:01:33.7]} 19. Bf3 {[%clk 0:00:18.8]} 19...
h6 {[%clk 0:01:26.9]} 20. h3 {[%clk 0:00:18.2]} 20... Rd8 {[%clk 0:01:24.3]} 21.
Ra7 {[%clk 0:00:17.8]} 21... Bd5 {[%clk 0:01:23]} 22. Rxc7 {[%clk 0:00:17.1]}
1-0

[Event "Early-Titled-Tuesday-Blitz-January-30-2024"]
[Site "Chess.com"]
[Date "2024.01.30"]
[Round "8"]
[White "Mikhail_Golubev"]
[Black "Sam_ChessMood"]
[Result "0-1"]
[WhiteElo "2680"]
[BlackElo "2902"]
[TimeControl "180+1"]
[EndTime "9:28:12 PST"]
[Termination "Sam_ChessMood won on time"]

1. e4 {[%clk 0:03:00.9]} 1... c5 {[%clk 0:03:00]} 2. Nf3 {[%clk 0:02:59.8]} 2...
Nc6 {[%clk 0:02:58.9]} 3. Nc3 {[%clk 0:02:59]} 3... Nf6 {[%clk 0:02:56.3]} 4.
Bb5 {[%clk 0:02:57.1]} 4... g6 {[%clk 0:02:50.2]} 5. e5 {[%clk 0:02:47.9]} 5...
Nh5 {[%clk 0:02:49.9]} 6. O-O {[%clk 0:02:31.9]} 6... Bg7 {[%clk 0:02:49.3]} 7.
Bxc6 {[%clk 0:02:18.3]} 7... dxc6 {[%clk 0:02:42.9]} 8. h3 {[%clk 0:02:17.4]}
8... Nf4 {[%clk 0:02:40.4]} 9. d3 {[%clk 0:02:08.3]} 9... Ne6 {[%clk 0:02:40.4]}
10. Ne4 {[%clk 0:01:54.8]} 10... h6 {[%clk 0:02:39.4]} 11. Be3 {[%clk
0:01:53.8]} 11... b6 {[%clk 0:02:39.5]} 12. Qd2 {[%clk 0:01:48.8]} 12... Kf8
{[%clk 0:02:30.6]} 13. c3 {[%clk 0:01:23.3]} 13... Bb7 {[%clk 0:02:28.6]} 14.
Rfe1 {[%clk 0:01:21.5]} 14... Qd5 {[%clk 0:02:28]} 15. c4 {[%clk 0:01:17.7]}
15... Qd7 {[%clk 0:02:26.8]} 16. d4 {[%clk 0:01:11.6]} 16... cxd4 {[%clk
0:02:24.6]} 17. Nxd4 {[%clk 0:01:11.3]} 17... c5 {[%clk 0:02:19.1]} 18. Nxe6+
{[%clk 0:01:02.1]} 18... Qxe6 {[%clk 0:02:20]} 19. Nc3 {[%clk 0:01:01.6]} 19...
Kg8 {[%clk 0:01:54.1]} 20. Nd5 {[%clk 0:01:01.6]} 20... Kh7 {[%clk 0:01:54.2]}
21. Bf4 {[%clk 0:00:53.2]} 21... Rhd8 {[%clk 0:01:54.1]} 22. Rad1 {[%clk
0:00:52.7]} 22... Qc6 {[%clk 0:01:39.4]} 0-1

[Event "Early-Titled-Tuesday-Blitz-January-30-2024"]
[Site "Chess.com"]
[Date "2024.01.30"]
[Round "8"]
[White "secretsuperstar7"]
[Black "baki83"]
[Result "0-1"]
[WhiteElo "2517"]
[BlackElo "2791"]
[TimeControl "180+1"]
[EndTime "9:28:13 PST"]
[Termination "baki83 won by resignation"]

1. c4 {[%clk 0:03:00.9]} 1... e5 {[%clk 0:02:59.6]} 2. Nc3 {[%clk 0:03:01]} 2...
Nf6 {[%clk 0:02:59]} 3. g3 {[%clk 0:03:00.2]} 3... c6 {[%clk 0:02:57]} 4. Nf3
{[%clk 0:02:58.9]} 4... e4 {[%clk 0:02:56.3]} 5. Ng5 {[%clk 0:02:59]} 5... d5
{[%clk 0:02:56.2]} 6. cxd5 {[%clk 0:02:58]} 6... cxd5 {[%clk 0:02:56.3]} 7. Bg2
{[%clk 0:02:58.3]} 7... Nc6 {[%clk 0:02:54.4]} 8. O-O {[%clk 0:02:55]} 8... h6
{[%clk 0:02:54.2]} 9. Nh3 {[%clk 0:02:53.8]} 9... d4 {[%clk 0:02:54.1]} 10. Nb1
{[%clk 0:02:48.1]} 10... Bf5 {[%clk 0:02:38.8]} 11. d3 {[%clk 0:02:30.6]} 11...
g5 {[%clk 0:02:29.9]} 12. dxe4 {[%clk 0:02:26.6]} 12... Bxe4 {[%clk 0:02:25.8]}
13. Bxe4 {[%clk 0:02:19.9]} 13... Nxe4 {[%clk 0:02:25.9]} 14. Nd2 {[%clk
0:02:19.4]} 14... Nf6 {[%clk 0:02:16.1]} 15. f3 {[%clk 0:02:07]} 15... Bg7
{[%clk 0:02:15.1]} 16. Nf2 {[%clk 0:02:05.1]} 16... O-O {[%clk 0:02:15.3]} 17.
Nde4 {[%clk 0:02:05.1]} 17... Nd5 {[%clk 0:02:15.3]} 18. Bd2 {[%clk 0:01:48.9]}
18... Qe7 {[%clk 0:02:11.5]} 19. Qb3 {[%clk 0:01:46.6]} 19... Rad8 {[%clk
0:02:11]} 20. Rac1 {[%clk 0:01:44.1]} 20... Kh8 {[%clk 0:02:04.7]} 21. Rfe1
{[%clk 0:01:41.6]} 21... Ne3 {[%clk 0:01:59.8]} 22. Nc5 {[%clk 0:01:28]} 22...
b6 {[%clk 0:01:54.8]} 23. Ncd3 {[%clk 0:01:18.4]} 23... Rd6 {[%clk 0:01:52.6]}
24. Qb5 {[%clk 0:01:14.1]} 24... Qd7 {[%clk 0:01:38.8]} 25. Ne4 {[%clk
0:01:08.3]} 25... Rg6 {[%clk 0:01:38.7]} 26. Bb4 {[%clk 0:01:00.1]} 26... Rc8
{[%clk 0:01:34.3]} 27. Ba3 {[%clk 0:00:36.4]} 27... Qh3 {[%clk 0:01:33]} 28. Nf4
{[%clk 0:00:12.6]} 28... gxf4 {[%clk 0:01:32]} 0-1

[Event "Early-Titled-Tuesday-Blitz-January-30-2024"]
[Site "Chess.com"]
[Date "2024.01.30"]
[Round "8"]
[White "HanSchut"]
[Black "OneTrickPony_82"]
[Result "0-1"]
[WhiteElo "2256"]
[BlackElo "2506"]
[TimeControl "180+1"]
[EndTime "9:28:15 PST"]
[Termination "OneTrickPony_82 won by resignation"]

1. e4 {[%clk 0:02:49.4]} 1... e5 {[%clk 0:02:59.9]} 2. Nf3 {[%clk 0:02:49.4]}
2... Nc6 {[%clk 0:03:00.3]} 3. Bc4 {[%clk 0:02:49.9]} 3... Nf6 {[%clk
0:02:59.3]} 4. d4 {[%clk 0:02:49.8]} 4... exd4 {[%clk 0:02:58.7]} 5. e5 {[%clk
0:02:50.7]} 5... d5 {[%clk 0:02:58.9]} 6. Bb5 {[%clk 0:02:51.3]} 6... Nd7 {[%clk
0:02:59.2]} 7. O-O {[%clk 0:02:49.8]} 7... Be7 {[%clk 0:02:58.4]} 8. Bxc6 {[%clk
0:02:49.3]} 8... bxc6 {[%clk 0:02:58.3]} 9. Nxd4 {[%clk 0:02:49.9]} 9... Nb8
{[%clk 0:02:58.7]} 10. Nc3 {[%clk 0:02:49.5]} 10... O-O {[%clk 0:02:57.1]} 11.
Qf3 {[%clk 0:02:48.7]} 11... a5 {[%clk 0:02:55]} 12. Nf5 {[%clk 0:02:42.1]}
12... Bxf5 {[%clk 0:02:54.1]} 13. Qxf5 {[%clk 0:02:42.1]} 13... Ra6 {[%clk
0:02:50.8]} 14. Be3 {[%clk 0:02:29.6]} 14... c5 {[%clk 0:02:44.4]} 15. Rad1
{[%clk 0:02:24.7]} 15... d4 {[%clk 0:02:44.2]} 16. Ne4 {[%clk 0:02:24.5]} 16...
Qc8 {[%clk 0:02:29.6]} 17. Qxc8 {[%clk 0:02:23.9]} 17... Rxc8 {[%clk 0:02:30.1]}
18. Bc1 {[%clk 0:02:17.9]} 18... Nc6 {[%clk 0:02:21.1]} 19. f4 {[%clk
0:02:18.1]} 19... Nb4 {[%clk 0:02:14.9]} 20. f5 {[%clk 0:02:18.5]} 20... Nxc2
{[%clk 0:01:57.2]} 21. f6 {[%clk 0:02:18.2]} 21... Bf8 {[%clk 0:01:51.7]} 22.
fxg7 {[%clk 0:02:14.8]} 22... Bxg7 {[%clk 0:01:50.9]} 23. Nxc5 {[%clk
0:02:12.2]} 23... Rc6 {[%clk 0:01:44.1]} 24. Nd7 {[%clk 0:02:12.1]} 24... Rd8
{[%clk 0:01:37.8]} 25. Nf6+ {[%clk 0:02:11.1]} 25... Bxf6 {[%clk 0:01:37.7]} 26.
exf6 {[%clk 0:02:12]} 26... d3 {[%clk 0:01:30.8]} 27. Rf3 {[%clk 0:02:02.5]}
27... Rcd6 {[%clk 0:01:25]} 28. Rg3+ {[%clk 0:02:02.6]} 28... Kf8 {[%clk
0:01:22.7]} 29. Bh6+ {[%clk 0:02:02.1]} 29... Ke8 {[%clk 0:01:23]} 30. Rg8+
{[%clk 0:01:46.4]} 30... Kd7 {[%clk 0:01:22.9]} 31. Rxd8+ {[%clk 0:01:47.1]}
31... Kxd8 {[%clk 0:01:23.2]} 32. Kf2 {[%clk 0:01:45.2]} 32... Rxf6+ {[%clk
0:01:10.3]} 33. Kg3 {[%clk 0:01:44.5]} 33... Rxh6 {[%clk 0:01:04.3]} 34. Rxd3+
{[%clk 0:01:44.7]} 34... Rd6 {[%clk 0:01:05]} 35. Rf3 {[%clk 0:01:39.1]} 35...
Ke7 {[%clk 0:01:02.7]} 36. Rf5 {[%clk 0:01:38.5]} 36... Rg6+ {[%clk 0:00:59.4]}
37. Kf2 {[%clk 0:01:36.9]} 37... Rf6 {[%clk 0:00:59.2]} 38. Rxf6 {[%clk
0:01:33.2]} 38... Kxf6 {[%clk 0:00:59.4]} 39. Ke2 {[%clk 0:01:31.9]} 39... Ke5
{[%clk 0:00:59.4]} 40. Kd3 {[%clk 0:01:32.4]} 40... Nb4+ {[%clk 0:00:59.3]} 41.
Kc4 {[%clk 0:01:30.9]} 41... Nxa2 {[%clk 0:00:59.5]} 42. Kb5 {[%clk 0:01:31.8]}
42... Nb4 {[%clk 0:00:52.5]} 43. Kxa5 {[%clk 0:01:31.7]} 43... Nd3 {[%clk
0:00:53.2]} 44. b4 {[%clk 0:01:31.8]} 44... Ne1 {[%clk 0:00:51.7]} 45. Kb5
{[%clk 0:01:31.2]} 45... Kd5 {[%clk 0:00:49.4]} 46. g4 {[%clk 0:01:30.6]} 46...
Nf3 {[%clk 0:00:48.9]} 0-1

[Event "Early-Titled-Tuesday-Blitz-January-30-2024"]
[Site "Chess.com"]
[Date "2024.01.30"]
[Round "8"]
[White "Cheer_Down"]
[Black "IlanSchnaider"]
[Result "0-1"]
[WhiteElo "2471"]
[BlackElo "2658"]
[TimeControl "180+1"]
[EndTime "9:28:19 PST"]
[Termination "IlanSchnaider won by checkmate"]

1. e4 {[%clk 0:03:00.9]} 1... c5 {[%clk 0:03:00.1]} 2. Nf3 {[%clk 0:03:00.6]}
2... d6 {[%clk 0:03:00.6]} 3. d4 {[%clk 0:03:00.6]} 3... cxd4 {[%clk 0:03:01.5]}
4. Nxd4 {[%clk 0:03:01.2]} 4... Nf6 {[%clk 0:03:01.9]} 5. Nc3 {[%clk 0:03:01.2]}
5... a6 {[%clk 0:03:02.2]} 6. Rg1 {[%clk 0:03:00.9]} 6... b5 {[%clk 0:03:01.3]}
7. g4 {[%clk 0:02:58.5]} 7... Bb7 {[%clk 0:03:00.2]} 8. g5 {[%clk 0:02:58.7]}
8... Nxe4 {[%clk 0:02:36]} 9. Nxe4 {[%clk 0:02:58.8]} 9... Bxe4 {[%clk
0:02:36.1]} 10. a4 {[%clk 0:02:59.3]} 10... e5 {[%clk 0:02:29.8]} 11. Qe2 {[%clk
0:02:41]} 11... d5 {[%clk 0:01:49.1]} 12. f3 {[%clk 0:02:25.4]} 12... exd4
{[%clk 0:01:45.4]} 13. fxe4 {[%clk 0:02:25.5]} 13... Bb4+ {[%clk 0:01:45.9]} 14.
Kd1 {[%clk 0:02:22.6]} 14... O-O {[%clk 0:01:43.1]} 15. Bg2 {[%clk 0:02:05.2]}
15... Re8 {[%clk 0:01:41.3]} 16. axb5 {[%clk 0:02:01.5]} 16... Nd7 {[%clk
0:01:35.6]} 17. bxa6 {[%clk 0:01:19.5]} 17... dxe4 {[%clk 0:01:33]} 18. Bxe4
{[%clk 0:00:56.9]} 18... Nc5 {[%clk 0:01:32.5]} 19. Qc4 {[%clk 0:00:56.7]} 19...
Nxe4 {[%clk 0:01:25.2]} 20. Qxb4 {[%clk 0:00:57]} 20... Nf2+ {[%clk 0:01:15]}
21. Kd2 {[%clk 0:00:56.3]} 21... Qc7 {[%clk 0:01:11.1]} 22. Qb7 {[%clk
0:00:17.1]} 22... Qf4# {[%clk 0:01:09.8]} 0-1

[Event "Early-Titled-Tuesday-Blitz-January-30-2024"]
[Site "Chess.com"]
[Date "2024.01.30"]
[Round "8"]
[White "aksuliini1"]
[Black "Kotofeyca"]
[Result "1-0"]
[WhiteElo "2522"]
[BlackElo "2373"]
[TimeControl "180+1"]
[EndTime "9:28:26 PST"]
[Termination "aksuliini1 won on time"]

1. e4 {[%clk 0:03:00.9]} 1... c5 {[%clk 0:02:58.9]} 2. Nf3 {[%clk 0:03:00.9]}
2... d6 {[%clk 0:02:58.7]} 3. d4 {[%clk 0:03:00.9]} 3... cxd4 {[%clk 0:02:59.1]}
4. Nxd4 {[%clk 0:03:01]} 4... Nf6 {[%clk 0:02:59.7]} 5. Nc3 {[%clk 0:03:01.6]}
5... a6 {[%clk 0:03:00.2]} 6. h3 {[%clk 0:03:01.9]} 6... b5 {[%clk 0:02:58.7]}
7. g4 {[%clk 0:02:55.4]} 7... Bb7 {[%clk 0:02:58.7]} 8. Bg2 {[%clk 0:02:54]}
8... e6 {[%clk 0:02:55]} 9. g5 {[%clk 0:02:52.3]} 9... b4 {[%clk 0:02:53.3]} 10.
gxf6 {[%clk 0:02:36.5]} 10... bxc3 {[%clk 0:02:53.2]} 11. fxg7 {[%clk
0:02:34.4]} 11... Bxg7 {[%clk 0:02:54.1]} 12. bxc3 {[%clk 0:02:34.6]} 12... Qc7
{[%clk 0:02:54]} 13. Bb2 {[%clk 0:02:28]} 13... Nd7 {[%clk 0:02:44.2]} 14. O-O
{[%clk 0:02:27.3]} 14... Nc5 {[%clk 0:02:36.8]} 15. Qg4 {[%clk 0:02:15]} 15...
Rg8 {[%clk 0:02:25.5]} 16. Qh4 {[%clk 0:02:04]} 16... Bxd4 {[%clk 0:02:13]} 17.
cxd4 {[%clk 0:01:58.5]} 17... Bxe4 {[%clk 0:02:12.3]} 18. f3 {[%clk 0:01:59.1]}
18... Bf5 {[%clk 0:00:14.5]} 19. dxc5 {[%clk 0:01:51.6]} 19... Qxc5+ {[%clk
0:00:14.7]} 20. Bd4 {[%clk 0:01:47.9]} 20... Qxc2 {[%clk 0:00:14.8]} 21. Rf2
{[%clk 0:01:48.3]} 21... Qd3 {[%clk 0:00:13.3]} 22. Rc1 {[%clk 0:01:36.2]} 22...
Bxh3 {[%clk 0:00:10.6]} 23. Rc7 {[%clk 0:01:22.2]} 23... f6 {[%clk 0:00:01.6]}
24. Qxh3 {[%clk 0:01:20.6]} 1-0

[Event "Early-Titled-Tuesday-Blitz-January-30-2024"]
[Site "Chess.com"]
[Date "2024.01.30"]
[Round "8"]
[White "Mackster23"]
[Black "ural58"]
[Result "1-0"]
[WhiteElo "2653"]
[BlackElo "2448"]
[TimeControl "180+1"]
[EndTime "9:28:27 PST"]
[Termination "Mackster23 won by resignation"]

1. e4 {[%clk 0:02:41.2]} 1... d5 {[%clk 0:02:53.6]} 2. exd5 {[%clk 0:02:41.3]}
2... Qxd5 {[%clk 0:02:52.2]} 3. Nc3 {[%clk 0:02:41.5]} 3... Qa5 {[%clk
0:02:52.2]} 4. d4 {[%clk 0:02:42]} 4... Nf6 {[%clk 0:02:52.6]} 5. Bd2 {[%clk
0:02:40.8]} 5... Bg4 {[%clk 0:02:50.6]} 6. Nf3 {[%clk 0:02:40.8]} 6... Qf5
{[%clk 0:02:41.2]} 7. Bd3 {[%clk 0:02:40.4]} 7... Bxf3 {[%clk 0:02:39.8]} 8.
gxf3 {[%clk 0:02:41.3]} 8... Qd7 {[%clk 0:02:38.3]} 9. Ne4 {[%clk 0:02:41.8]}
9... Nxe4 {[%clk 0:02:27.3]} 10. Bxe4 {[%clk 0:02:39.3]} 10... Nc6 {[%clk
0:02:20.7]} 11. c3 {[%clk 0:02:38.9]} 11... g6 {[%clk 0:02:16.9]} 12. Qb3 {[%clk
0:02:36.4]} 12... Rb8 {[%clk 0:02:09.8]} 13. O-O-O {[%clk 0:02:29.9]} 13... Bg7
{[%clk 0:02:08.9]} 14. h4 {[%clk 0:02:28.8]} 14... e6 {[%clk 0:01:50.4]} 15. h5
{[%clk 0:02:26.8]} 15... Bf6 {[%clk 0:01:45.7]} 16. Kb1 {[%clk 0:02:24.9]} 16...
Ne7 {[%clk 0:01:44.3]} 17. Be3 {[%clk 0:02:07.6]} 17... c6 {[%clk 0:01:43.2]}
18. c4 {[%clk 0:02:06.8]} 18... Qc7 {[%clk 0:01:28.7]} 19. Qd3 {[%clk
0:01:42.3]} 19... b5 {[%clk 0:01:20.8]} 20. cxb5 {[%clk 0:01:39.8]} 20... Rxb5
{[%clk 0:01:18.9]} 21. Rc1 {[%clk 0:01:39.3]} 21... O-O {[%clk 0:01:14.4]} 22.
Qxb5 {[%clk 0:01:36.5]} 22... Rb8 {[%clk 0:01:12.6]} 23. Qe2 {[%clk 0:01:32.8]}
23... c5 {[%clk 0:01:12.5]} 24. Rxc5 {[%clk 0:01:28.7]} 24... Qb6 {[%clk
0:01:12.1]} 25. Rc2 {[%clk 0:01:25.9]} 25... a5 {[%clk 0:01:10.9]} 26. hxg6
{[%clk 0:01:24.8]} 26... hxg6 {[%clk 0:01:09.6]} 27. Qc4 {[%clk 0:00:58.6]}
27... a4 {[%clk 0:01:06.7]} 28. Qxa4 {[%clk 0:00:57]} 28... Nd5 {[%clk
0:00:59.7]} 29. Bxd5 {[%clk 0:00:56.9]} 29... exd5 {[%clk 0:01:00.6]} 30. Qc6
{[%clk 0:00:48]} 30... Qb4 {[%clk 0:00:58.7]} 31. Qxf6 {[%clk 0:00:41.9]} 1-0

[Event "Early-Titled-Tuesday-Blitz-January-30-2024"]
[Site "Chess.com"]
[Date "2024.01.30"]
[Round "8"]
[White "Sethu0025"]
[Black "Iskusnyh"]
[Result "1-0"]
[WhiteElo "2864"]
[BlackElo "2667"]
[TimeControl "180+1"]
[EndTime "9:28:33 PST"]
[Termination "Sethu0025 won on time"]

1. d4 {[%clk 0:03:00.9]} 1... d5 {[%clk 0:02:59.5]} 2. c4 {[%clk 0:03:01]} 2...
c6 {[%clk 0:02:59.2]} 3. Nf3 {[%clk 0:03:01.6]} 3... Nf6 {[%clk 0:02:59]} 4. e3
{[%clk 0:03:02.1]} 4... a6 {[%clk 0:02:57.9]} 5. Nc3 {[%clk 0:03:01.1]} 5... e6
{[%clk 0:02:57]} 6. b3 {[%clk 0:02:57.1]} 6... Bb4 {[%clk 0:02:55.1]} 7. Bd2
{[%clk 0:02:57.3]} 7... Nbd7 {[%clk 0:02:54.6]} 8. Bd3 {[%clk 0:02:57.2]} 8...
O-O {[%clk 0:02:53.6]} 9. Qc2 {[%clk 0:02:56.9]} 9... Qe7 {[%clk 0:02:45]} 10.
O-O {[%clk 0:02:54.8]} 10... e5 {[%clk 0:02:35.1]} 11. cxd5 {[%clk 0:02:42.1]}
11... Bxc3 {[%clk 0:02:12]} 12. d6 {[%clk 0:02:41.7]} 12... Qxd6 {[%clk
0:02:07.3]} 13. Bxc3 {[%clk 0:02:40.5]} 13... e4 {[%clk 0:01:41.5]} 14. Bxe4
{[%clk 0:02:39.5]} 14... Nxe4 {[%clk 0:01:42]} 15. Qxe4 {[%clk 0:02:40.4]} 15...
Nf6 {[%clk 0:01:42.5]} 16. Qe5 {[%clk 0:02:39.4]} 16... Qd5 {[%clk 0:01:39]} 17.
Qxd5 {[%clk 0:02:37.5]} 17... Nxd5 {[%clk 0:01:33.2]} 18. Rfc1 {[%clk
0:02:37.5]} 18... Re8 {[%clk 0:01:26.6]} 19. Ne5 {[%clk 0:02:35.9]} 19... f6
{[%clk 0:01:24.1]} 20. Nc4 {[%clk 0:02:35.5]} 20... Be6 {[%clk 0:01:21.4]} 21.
Bd2 {[%clk 0:02:33.1]} 21... Rad8 {[%clk 0:01:18.2]} 22. Ba5 {[%clk 0:02:30.9]}
22... Rd7 {[%clk 0:01:17.1]} 23. Nd2 {[%clk 0:02:30.1]} 23... Bf7 {[%clk
0:01:12.1]} 24. Nc4 {[%clk 0:02:27.2]} 24... h5 {[%clk 0:01:04.2]} 25. h4 {[%clk
0:02:26.2]} 25... Re4 {[%clk 0:01:01.3]} 26. f3 {[%clk 0:02:22.7]} 26... Re8
{[%clk 0:00:56.8]} 27. Kf2 {[%clk 0:02:22.2]} 27... b5 {[%clk 0:00:47.4]} 28.
Nb6 {[%clk 0:02:22.2]} 28... Rde7 {[%clk 0:00:40.9]} 29. e4 {[%clk 0:02:09.7]}
29... Nf4 {[%clk 0:00:14.9]} 30. Rxc6 {[%clk 0:02:07.2]} 30... Bg6 {[%clk
0:00:09.8]} 31. Bd2 {[%clk 0:02:00.4]} 31... Ne6 {[%clk 0:00:05.9]} 32. Be3
{[%clk 0:01:59.3]} 32... f5 {[%clk 0:00:04.9]} 33. d5 {[%clk 0:01:57.4]} 33...
f4 {[%clk 0:00:05.1]} 34. Bd2 {[%clk 0:01:55.3]} 34... Nd4 {[%clk 0:00:02.3]}
35. Rxg6 {[%clk 0:01:54.7]} 1-0